Cogmind - Beta 13 @@@ ROGUE MODE // 2024.04.05 @ 19:10:36 Player: Rougue Result: Destroyed by L-31 Rogue with Katana Performance ------------- Evolutions (0) 0 Regions Visited (4) 800 Robots Destroyed (33) 165 Value Destroyed (433) 433 Prototype IDs (27) 540 Alien Tech Used (0) 0 Bonus (260) 260 TOTAL SCORE: 2198 Bonus ------- Follower Combat Kills 176 Aligned with FarCom 300 Friendly Fire -216 Cogmind --------- Core Integrity 0/250 Matter 264/300 Energy 100/100 System Corruption 0% Temperature Cool (0) Movement Treading (240) Ox1 Location -9/Mines Parts ------- > --- POWER (1) -------- (None) > --- PROPULSION (2) --- Light Treads Light Treads > --- UTILITY (2) ------ High-capacity Storage Unit Structural Scanner > --- WEAPON (2) ------- Rocket Launcher Hammer > --- INVENTORY (20) --- Light Ion Engine High-capacity Matter Pod (200) Weight Redist. System Experimental Sensor Array Transport Network Coupler Hacking Suite Hacking Suite EM Pulse Gun Light Assault Rifle Light Assault Rifle Light Assault Rifle Light Assault Rifle Light Assault Rifle Grenade Launcher Datajack Datajack Peak State ------------ > --- POWER ------------ Light Ion Engine > --- PROPULSION ------- Light Treads Light Treads > --- UTILITY ---------- Large Storage Unit Experimental Sensor Array > --- WEAPON ----------- EM Pulse Gun Grenade Launcher > --- INVENTORY -------- Light Ion Engine High-capacity Matter Pod Weight Redist. System Structural Scanner Transport Network Coupler Hacking Suite Hacking Suite Light Assault Rifle Light Assault Rifle Light Assault Rifle Light Assault Rifle Light Assault Rifle Datajack Datajack Hammer [Rating: 17] Favorites ----------- Power Light Ion Engine Engine Light Ion Engine Propulsion Light Treads Treads Light Treads Utility Structural Scanner Device Structural Scanner Storage Large Storage Unit Processor Signal Interpreter Weapon Light Assault Rifle Energy Gun EM Pulse Gun Energy Cannon Beam Cannon Ballistic Gun Light Assault Rifle Launcher Grenade Launcher Impact Weapon Hammer Build | -11 -10 -10 -10 -9 ------- Run | Yrd Mat Min Exi Min Slots Evolved . | . . . . . Power . | . . . . . Propulsion . | . . . . . Utility . | . . . . . Weapon . | . . . . . Parts Attached 39 | 7 11 14 . 7 Power 3 | 2 . 1 . . Engine 3 | 2 . 1 . . Core . | . . . . . Reactor . | . . . . . Propulsion 4 | 2 . 1 . 1 Treads 4 | 2 . 1 . 1 Leg . | . . . . . Wheel . | . . . . . Hover . | . . . . . Flight . | . . . . . Utility 8 | 1 4 . . 3 Device 4 | . 2 . . 2 Storage 3 | 1 1 . . 1 Processor 1 | . 1 . . . Hackware . | . . . . . Protection . | . . . . . Artifact . | . . . . . Weapon 24 | 2 7 12 . 3 Energy Gun 2 | 1 . 1 . . Energy Cannon 3 | . 1 2 . . Ballistic Gun 8 | 1 3 4 . . Ballistic Cannon . | . . . . . Launcher 10 | . 3 5 . 2 Special Weapon . | . . . . . Impact Weapon 1 | . . . . 1 Slashing Weapon . | . . . . . Piercing Weapon . | . . . . . Special Melee Weapon . | . . . . . Unidentified Prototypes 1 | . . . . 1 Parts Lost 8 | . 1 6 . 1 Power 2 | . . 1 . 1 Propulsion 2 | . . 2 . . Utility . | . . . . . Weapon 4 | . 1 3 . . Highest Loss Streak 6 | . 1 6 . 1 To Critical Strikes . | . . . . . Average Slot Usage (%) 93 | . 99 85 85 99 Engine 13 | . 14 13 14 13 Treads 22 | . 28 15 14 27 Device 13 | . 12 14 14 14 Storage 14 | . 14 14 14 14 Energy Gun 8 | . 6 4 14 13 Energy Cannon 2 | . 6 . . . Ballistic Gun 8 | . 9 12 14 . Launcher 7 | . 5 10 . 14 Naked Turns . | . . . . . Heaviest Build 51 | 13 31 32 27 51 Greatest Support 40 | 40 40 40 20 40 Greatest Overweight (x) 9 | . . 9 1 1 Average Overweight (x) . | . . . 1 . Largest Inventory Capacity 20 | 8 15 15 15 20 Average Capacity 14 | 6 13 15 15 17 Most Carried 16 | 1 12 15 15 16 Average Carried 11 | . 7 12 15 15 Final Capacity 20 | 8 15 15 15 20 Final Carried 16 | 1 12 15 15 16 Class Distribution -------------------- 100% | Mutant Dominant Class ---------------- Mutant | -10/Materials Mutant | -10/Mines Mutant | -10/Exiles Mutant | -9/Mines Resources | -11 -10 -10 -10 -9 ----------- Run | Yrd Mat Min Exi Min Matter Collected 942 | 270 387 174 . 111 Remotely . | . . . . . Salvage Created 724 | 74 534 57 . 59 Parts 61 | 3 39 12 . 7 Haulers Intercepted 2 | . 2 . . . Recyclers Shooed 1 | . 1 . . . Parts Field Recycled . | . . . . . Retrieved Matter . | . . . . . Parts Self-Destructed . | . . . . . Prevented . | . . . . . Kills | -11 -10 -10 -10 -9 ------- Run | Yrd Mat Min Exi Min Combat Hostiles Destroyed 25 | . 14 7 . 4 Guns 8 | . 5 3 . . Cannons 2 | . 2 . . . AOE 15 | . 7 4 . 4 Classes Destroyed 6 | 1 5 . . . Builder 1 | . 1 . . . Hauler 2 | . 2 . . . Recycler 2 | 1 1 . . . Operator 2 | . 2 . . . Swarmer 20 | . 9 7 . 4 Grunt 6 | . 5 . . 1 Best Kill Streak 5 | 1 5 5 . 4 Combat Bots Only 5 | . 5 5 . 4 Max Kills in Single Turn 2 | 1 2 1 . 2 Gunslinging . | . . . . . Exploded 2 | . 2 1 . 2 Melee . | . . . . . Uniques/NPCs Destroyed . | . . . . . Combat | -11 -10 -10 -10 -9 -------- Run | Yrd Mat Min Exi Min Hostile Shots Fired 136 | . 43 83 . 10 Missed 28 | . 13 14 . 1 Damage Taken 1143 | . 281 645 . 217 Core 268 | . 40 137 . 91 Absorbed by Shields . | . . . . . Core Remaining (%) 100 | 100 . . . . Volleys Fired 67 | 2 40 20 . 5 Largest 2 | 2 2 2 . 2 Hottest 80 | 60 80 80 . 70 Shots Fired 121 | 4 75 32 . 10 Gun 74 | 4 54 12 . 4 Cannon 28 | . 16 12 . . Launcher 19 | . 5 8 . 6 Special . | . . . . . Kinetic 48 | 2 35 11 . . Thermal 28 | . 16 12 . . Explosive 19 | . 5 8 . 6 Electromagnetic 26 | 2 19 1 . 4 Robot Hit Streak 8 | 3 8 2 . 2 Robot Miss Streak 8 | . 4 8 . 1 Penetration Max . | . . . . . Secondary Targets 1 | . 1 . . . Max Gunslinging Chain 1 | . 1 . . . Shots Hit Robots 54 | 3 38 10 . 3 Core Hits 53 | 3 27 12 . 11 Critical Kills . | . . . . . Critical Parts Destroyed . | . . . . . Critical Strikes . | . . . . . Melee Attacks 3 | . . . . 3 Impact 3 | . . . . 3 Slashing . | . . . . . Piercing . | . . . . . Sneak Attacks . | . . . . . Combat Hostiles . | . . . . . Follow-up Attacks . | . . . . . Damage Inflicted 1515 | 41 715 380 . 379 Guns 348 | 41 259 48 . . Cannons 227 | . 192 35 . . Explosions 849 | . 252 285 . 312 Melee 62 | . . . . 62 Ramming 29 | . 12 12 . 5 Kinetic 222 | 15 159 48 . . Thermal 227 | . 192 35 . . Explosive 849 | . 252 285 . 312 Electromagnetic 126 | 26 100 . . . Impact 62 | . . . . 62 Slashing . | . . . . . Piercing . | . . . . . Highest Corruption . | . . . . . Average Corruption . | . . . . . Corruption Purged . | . . . . . Corruption Blocked . | . . . . . Overload Shots . | . . . . . Overflow Damage 12 | . 5 7 . . Projectiles 5 | . 5 . . . Explosions 7 | . . 7 . . Melee . | . . . . . Knockbacks 2 | . . . . 2 Impact 1 | . . . . 1 Kinetic . | . . . . . Secondary 1 | . . . . 1 Self-Inflicted Damage 126 | . . 96 . 30 Shots 5 | . . 4 . 1 Rammed 6 | . 2 2 . 2 Targets Rammed 6 | . 2 2 . 2 Kicked . | . . . . . Crushed . | . . . . . Highest Temperature 240 | 20 98 240 . 27 Average Temperature 53 | 15 30 121 . 10 Received Heat Transfer 120 | . 90 . . 30 Effects 2 | . . 2 . . Interference 2 | . . 2 . . Siege Activations . | . . . . . Robots Corrupted . | . . . . . Combat Hostiles . | . . . . . Parts Fried . | . . . . . Impact Corruptions . | . . . . . Robots Melted . | . . . . . Combat Hostiles . | . . . . . Parts Melted 1 | . 1 . . . Heat Transferred 481 | . 407 74 . . Parts Sabotaged . | . . . . . Parts Stolen . | . . . . . Parts Stripped . | . . . . . Power Chain Reactions . | . . . . . Alert | -11 -10 -10 -10 -9 ------- Run | Yrd Mat Min Exi Min Peak Influence 323 | 5 323 252 . 162 Initial 67 | . 3 67 . . Average 96 | 1 134 74 . 63 Maximum Alert Level 1 | . 1 1 . . Low Security (%) 79 | 100 62 86 . 100 Level 1 20 | . 37 13 . . Level 2 . | . . . . . Level 3 . | . . . . . Level 4 . | . . . . . Level 5 . | . . . . . High Security . | . . . . . Max Security . | . . . . . Squads Dispatched 3 | . 2 . . 1 Investigation . | . . . . . Extermination . | . . . . . Reinforcement 2 | . 2 . . . Assault 1 | . . . . 1 Garrison . | . . . . . Intercept . | . . . . . Searches Triggered . | . . . . . Construction Impeded . | . . . . . Haulers Reinforced . | . . . . . Active Scanning Responses . | . . . . . Cargo Convoy Interrupts . | . . . . . Stealth | -11 -10 -10 -10 -9 --------- Run | Yrd Mat Min Exi Min Distress Signals 5 | . 4 1 . . Communications Jammed . | . . . . . Distress Signals . | . . . . . Times Spotted 61 | . 37 13 . 11 Peak Tracking Total 6 | . 4 6 . 4 Tactical Retreats 3 | . 1 2 . . Traps | -11 -10 -10 -10 -9 ------- Run | Yrd Mat Min Exi Min Traps Triggered . | . . . . . Indirectly . | . . . . . Trap Hack Attempts . | . . . . . Triggered . | . . . . . Disarmed . | . . . . . Reprogrammed . | . . . . . Reused . | . . . . . Traps Extracted . | . . . . . Installed . | . . . . . Triggered . | . . . . . Machines | -11 -10 -10 -10 -9 ---------- Run | Yrd Mat Min Exi Min Machines Disabled 1 | . . 1 . . Max in Single Turn . | . . . . . Machines Repaired . | . . . . . Machines Dismantled . | . . . . . Machines Sabotaged . | . . . . . Overloaded Fab Kills . | . . . . . Hacking | -11 -10 -10 -10 -9 --------- Run | Yrd Mat Min Exi Min Machines Accessed 8 | . 7 . 1 . Terminals 5 | . 5 . . . Fabricators . | . . . . . Repair Stations . | . . . . . Recycling Units 2 | . 2 . . . Scanalyzers . | . . . . . Garrison Access . | . . . . . Total Hacks 20 | . 19 . 1 . Successful 12 | . 11 . 1 . Failed 8 | . 8 . . . Catastrophic 1 | . 1 . . . Database Lockouts . | . . . . . Manual 6 | . 5 . 1 . Terminals 17 | . 17 . . . Fabricators . | . . . . . Repair Stations . | . . . . . Recycling Units 2 | . 2 . . . Scanalyzers . | . . . . . Garrison Access . | . . . . . Terminal Hacks 10 | . 9 . 1 . Prototype ID Bank 3 | . 3 . . . Scanalyzer Index 1 | . 1 . . . Alert Level 1 | . 1 . . . Locate Traps 1 | . 1 . . . Hauler Manifests 1 | . 1 . . . Registered Prototypes 1 | . 1 . . . Zone Layout 1 | . 1 . . . Derelict Proto ID Bank 1 | . . . 1 . Fabricator Hacks . | . . . . . Repair Station Hacks . | . . . . . Recycling Unit Hacks 2 | . 2 . . . Report Inventory 2 | . 2 . . . Scanalyzer . | . . . . . Garrison Access Hacks . | . . . . . Unauthorized Hacks . | . . . . . Terminals . | . . . . . Fabricators . | . . . . . Repair Stations . | . . . . . Recycling Units . | . . . . . Scanalyzers . | . . . . . Garrison Access . | . . . . . Data Cores Recovered . | . . . . . Used . | . . . . . Hacking Detections 5 | . 5 . . . Full Trace Events 1 | . 1 . . . Feedback Events . | . . . . . Feedback Blocked . | . . . . . Robot Schematics Acquired . | . . . . . Robots Built . | . . . . . Authchips . | . . . . . Time . | . . . . . Total Robot Build Rating . | . . . . . Part Schematics Acquired . | . . . . . Parts Built . | . . . . . Authchips . | . . . . . Time . | . . . . . Total Part Build Rating . | . . . . . Parts Repaired . | . . . . . Time . | . . . . . Parts Recycled . | . . . . . Recycled Matter . | . . . . . Retrieved Matter . | . . . . . Retrieved Components . | . . . . . Parts Scanalyzed . | . . . . . Part Schematics Acquired . | . . . . . Parts Damaged . | . . . . . Bothacking | -11 -10 -10 -10 -9 ------------ Run | Yrd Mat Min Exi Min Used RIF Installer . | . . . . . Robots Hacked . | . . . . . Non-combat . | . . . . . Combat . | . . . . . Robot Hacks Applied . | . . . . . Relay Couplers Released . | . . . . . Fabnet Peak Effective % . | . . . . . Robots Rewired . | . . . . . Allies Hacked . | . . . . . Hacks Repelled . | . . . . . Allies | -11 -10 -10 -10 -9 -------- Run | Yrd Mat Min Exi Min Total Allies 7 | . . 6 . 1 Largest Group 6 | . . 6 6 3 Highest-Rated Group 110 | . . 110 110 63 Highest-Rated Ally 31 | . . 31 31 31 Total Orders . | . . . . . Ally Attacks 41 | . . 12 . 29 Total Damage 467 | . . 156 . 311 Kills 8 | . . 4 . 4 Allies Corrupted . | . . . . . Allies Melted . | . . . . . Intel | -11 -10 -10 -10 -9 ------- Run | Yrd Mat Min Exi Min Robot Analysis Total . | . . . . . Derelict Logs Recovered 2 | . . . . 2 Drone Launches . | . . . . . Drone Recoveries . | . . . . . Exploration | -11 -10 -10 -10 -9 ------------- Run | Yrd Mat Min Exi Min Turns Passed 4893 | 70 1835 1455 549 984 Spaces Moved 2344 | 35 1028 572 228 481 Core 5 | 3 . 2 . . Treads 2339 | 32 1028 570 228 481 Legs . | . . . . . Wheels . | . . . . . Hover . | . . . . . Flight . | . . . . . Fastest Speed 50 | 50 160 160 240 160 Average Speed 190 | 150 160 228 240 192 Slowest Speed 500 | 160 160 500 240 240 Overloaded Moves . | . . . . . Propulsion Burnouts . | . . . . . Robots Hopped . | . . . . . Cave-ins Triggered . | . . . . . Exploration Rate (%) 69 | 4 98 98 59 89 Regions Visited 4 Branch Regions 3 Pre-discovered Areas 2 | . . . . 2 Known Exits Taken 1 | . 1 . . . Unknown Exits Taken 3 | 1 . 1 1 . Scrap Searched 3 | . . 1 . 2 Spaces Dug 57 | . 14 21 . 22 Terrain Destroyed 125 | . 22 63 . 40 Melee . | . . . . . Projectile . | . . . . . AOE 125 | . 22 63 . 40 Terrain Rammed . | . . . . . Walls Destroyed . | . . . . . Machines Disabled . | . . . . . Actions | -11 -10 -10 -10 -9 --------- Run | Yrd Mat Min Exi Min Total 2627 | 45 1144 685 231 522 Wait 146 | 2 52 70 4 18 Move 2340 | 34 1027 571 227 481 Hop . | . . . . . Pick Up 23 | . 12 8 . 3 Fast Attach 8 | 6 1 . . 1 Attach 6 | . 1 5 . . Detach . | . . . . . Swap 25 | 1 9 9 . 6 Drop 3 | . . . . 3 Fire 67 | 2 40 20 . 5 Melee 3 | . . . . 3 Ram . | . . . . . Kick . | . . . . . Crush 6 | . 2 2 . 2 Escape Stasis . | . . . . . Rewire . | . . . . . Trap . | . . . . . Miscellaneous . | . . . . . Route ------- -11/Scrapyard -10/Materials (discovered 6 exits: *Mat x3 / *Min x2 / [Sub]) -10/Mines (discovered 4 exits: *Mat x2 / *Exi / [Sub]) -10/Exiles -9/Mines (discovered 2 exits: [*Mat x2]) History --------- Turn | Location | Event 4 | -11/Scrapyard | Discovered new exit (range 15) 71 | -11/Scrapyard | Entered Materials 213 | -10/Materials | Discovered new exit (range 16) 311 | -10/Materials | Build established: Mutant 317 | -10/Materials | Identified exit to Materials 352 | -10/Materials | Discovered new exit (range 11) 371 | -10/Materials | Identified exit to Mines 623 | -10/Materials | Discovered new exit (range 9) 915 | -10/Materials | Discovered exit to Materials (range 7) 1047 | -10/Materials | Discovered exit to Materials (range 11) 1240 | -10/Materials | Discovered exit to Mines (range 16) 1906 | -10/Materials | Entered Mines 1932 | -10/Mines | Found a hidden stash of uninstalled traps 1936 | -10/Mines | Assembled infested the area 2007 | -10/Mines | Discovered exit to Materials (range 5) 2105 | -10/Mines | Core integrity fell below 50% 2160 | -10/Mines | Lost 6 parts (1p2n3w) 2658 | -10/Mines | Assisted by bots powering up and referring to "LRC-V3" 2823 | -10/Mines | Discovered new exit (range 5) 2915 | -10/Mines | Discovered new exit (range 14) 3183 | -10/Mines | Discovered exit to Materials (range 9) 3199 | -10/Mines | Escorted by a lone wolf Derelict 3361 | -10/Mines | Entered Exiles 3361 | -10/Exiles | Accompanied by 6 allies 3391 | -10/Exiles | Led the pair of lost Derelicts to a safe place 3417 | -10/Exiles | Met 8R-AWN 3462 | -10/Exiles | Met EX-HEX 3529 | -10/Exiles | Met EX-BIN 3556 | -10/Exiles | Aligned with FarCom system 3558 | -10/Exiles | Given EX-Vault access code 3613 | -10/Exiles | Opened EX-Vault 3666 | -10/Exiles | Warned to stay clear of 0b10 Research branches 3887 | -10/Exiles | Discovered new exit (range 10) 3910 | -10/Exiles | Entered Mines 3910 | -9/Mines | Accompanied by 3 allies 4089 | -9/Mines | Learned location of Zion (-7) 4235 | -9/Mines | Found a damaged Exp. Sensor Array with a note attached 4239 | -9/Mines | Found Prototype Device 4240 | -9/Mines | Identified Exp. Sensor Array 4446 | -9/Mines | Learned location of Storage (-9) 4543 | -9/Mines | Discovered new exit (range 7) 4594 | -9/Mines | Discovered new exit (range 5) 4606 | -9/Mines | Received a Rocket Launcher from a helpful Derelict 4842 | -9/Mines | Met a Derelict testing a Signal Generator 4890 | -9/Mines | Core integrity fell below 20% 4894 | -9/Mines | Destroyed by L-31 Rogue with Katana Last Messages --------------- 04882_ M-13 Machinist unfolds itself. 04883_ ALERT: Intercepting significant anomalous signal. Redirecting assault force. 04883_ G-47 Trooper: "LOCATED POTENTIAL SOURCE OF ANOMALOUS SIGNAL. NEUTRALIZING." 04883_ IO-QIG(g): "Looks like the friends we called actually did show up to play. Couldn't you guys just take that other tunnel?" 04885_ Trooper 1b suffers critical hit (Burn). 04886_ L-31 Rogue knocked back. 04888_ G-34 Mercenary destroyed. 04889_ Lgt. Ion Engine destroyed. 04890_ K-01 Serf collects debris. 04892_ Trooper 1b heat short circuits Particle Gun. 04892_ Trooper 1b overheating. 04893_ Trooper 1b heat damages core (-11). 04894_ G-34 Mercenary suffers critical hit (Burn). 04894_ G-34 Mercenary destroyed. Map ----- +----------------------------------------------------+ | | | | | | | | | | | | | ???????????????????????????#####?????????????????? | | ???????????????????????###########??????????????## | | ??????????????????????###### #####?????????????## | | ??????????????????????### ###?????????????## | | ??????????????????????## ###???????????### | | ??????????????????????## ###########???### | | ??????????????????????### ##########???## | | ??????????# ###?????### ########## ####### | | ??????????## ###?? ##### ########### ###### | | ?????????### & ##### ###??????## #### | | ?????????## ##???????## #### ## | | ?????????# ? ### #### #####????## #### ### | | ?????????????#### ? #### t#####????### ##### ### | | ???????????????## ?????## %] ##?????## ##### ##? | | ???????????????## ?????## ! ##????### ##? | | ???????????????????????### ##????### ##? | | ??????????????????????### ###???### ## ### | | ??????????????????????### ########## ## ### | | ??????????????????????## %=########## ### ## | | ??????????????????????## @% ##### ### # | | ??????????????????????## gl #### ### # | | ??????????????????????## *gm ## ### | | ?????????????????????### %= #### < | | ?????????????????????### ! %% ##### ## | | ?????????????????????## ########### | | ?????? $?????????????### # k ####?####### | | ?????? ?????????????####### #####???????## | | ????## ##????????????####### ######???####### | | ????## ##???????############ #######?######### | | ????## ###??????############ ########### #### | | ????## ####?????## t## ##### ##? | | ???### ###????### ####### r ### ###? | | ??#### ##???#### ######## ###?# | | ?#### #???#### ##??#### ####?# | | ?### ##??#### ##?#### ###??# | | ?## ##?#### ####### ##### ##???# | | ?## ###### ####### ####### ###???# | | ?## ##### ####?## ################# | | ?### #### ###??## ################## | | ##### ### ###??## ### | | ###### ### ##??### ### !!!! | | #### #### ##??### ### !!!! | | ## #### ###### ### ! !! | | ## ###### #### ! !! | +----------------------------------------------------+ Best States ------------- Heat Dissipation 25 Energy Generation 10 Energy Capacity 250 Matter Stores 300 Matter Capacity 300 Sight Range 16 Terrain Scan Density 10 Evasion (%) 40 Recoil Reduction 2 Item Schematics ----------------- None Robot Schematics ------------------ None Fabricated ------------ Nothing Alien Tech Used ----------------- None Achievements -------------- None Challenges ------------ None Game ------ Seed ImpulsePowerMount Manual? 0 Play Time 00:50:06 Cumulative 34.3 hours Start 2024.04.05 @ 18:00:38 End 2024.04.05 @ 19:10:36 Sessions 1 Manual Loads 0 Difficulty Rogue Special Mode None Game No. 66 Rogue 66 Adventurer 0 Explorer 0 Win Type - Total 0 Types 0/0/0/0/0/0/0/0/0 Lore% 22 Gallery% 22 Achievement% 22 Wizard Run 0 Options --------- Layout 1 ASCII 0 Keyboard 0 Movement Mouse Keybinds 0 Fullscreen 2 Font 24/Smallcaps Map View 50x35 Zoom Use 0% Tactical HUD 1 Map Filters NONE Filters NONE Steam 1 RUN: f383ba21-5e56-4a07-8703-c8a7791f64e9